Workbook

Sheet CC1-Budget
A1: Table 1: Cow-Calf Budget, 250 Cow - 2020 | N1: CCB-CC1-21
A2: Summer on Private Range, Winter Feeding Necessary | K2: No. of Cows: | L2: 250
G4: Total Number
C5: Weight | G5: of Head | I5: Price or | K5: Total | L5: Value or
C6: Each | E6: Unit | G6: or Units | I6: Cost/Unit | K6: Value | L6: Cost/Head | N6: Your Value
B7: GROSS RETURNS | Q7: NOTES
B8: Steer Calves | C8: 575 | E8: lbs | G8: 113 | I8: 1.67 | K8: =C8*G8*I8 -> 108508.25 | L8: =K8/$L$2 -> 434.033 | Q8: 250 | R8: Cows
B9: Heifer Calves | C9: 525 | E9: lbs | G9: 55 | I9: 1.62 | K9: =C9*G9*I9 -> 46777.5 | L9: =K9/$L$2 -> 187.11 | Q9: 10 | R9: Bulls
B10: Cull Cows | C10: 1200 | E10: lbs | G10: 43 | I10: 0.67 | K10: =C10*G10*I10 -> 34572 | L10: =K10/$L$2 -> 138.288 | Q10: 2 | R10: Horses
B11: Cull Bulls | C11: 1800 | E11: lbs | G11: 3 | I11: 0.88 | K11: =C11*G11*I11 -> 4752 | L11: =K11/$L$2 -> 19.008 | Q11: 0.17 | R11: Cow culling rate
B12: Cull Replacement Heifers | C12: 900 | E12: lbs | G12: 10 | I12: 1.12 | K12: =C12*G12*I12 -> 10080 | L12: =K12/$L$2 -> 40.32 | Q12: 0.02 | R12: Cow death loss
B13: TOTAL GROSS RETURNS | K13: =SUM(K8:K12) -> 204689.75 | L13: =SUM(L8:L12) -> 818.759 | Q13: 0.9 | R13: Calf crop
Q14: 0.17 | R14: Heifer culling rate
B15: OPERATING COSTS
B16: Alfalfa/Grass Hay | E16: ton | G16: 434 | I16: 180.25 | K16: =G16*I16 -> 78228.5 | L16: =K16/$L$2 -> 312.914
B17: Feed Barley | E17: cwt | G17: 173 | I17: 30.38 | K17: =G17*I17 -> 5255.74 | L17: 21.02296
B18: Private Range | E18: AUM | G18: 2134 | I18: 26 | K18: 55484 | L18: 221.936
B19: Crop Aftermath | E19: AUM | G19: 303 | I19: 19.5 | K19: 5908.5 | L19: 23.634
B20: Salt/Mineral | E20: cwt | G20: 60 | I20: 15 | K20: 900 | L20: 3.6
B21: Veterinary/Medicine | E21: $ | G21: 1 | I21: =Vet!V32 -> 7107.775828 | K21: =G21*I21 -> 7107.775828 | L21: 28.43110331
B22: Trucking to & from Pasture | E22: head | G22: 250 | I22: 18 | K22: 4500 | L22: 18
B23: Trucking to Market | E23: head | G23: =SUM(G10:G12) -> 56 | I23: 10 | K23: 560 | L23: 2.24
B24: Commission | E24: head | G24: =SUM(G10:G12) -> 56 | I24: =(K10+K11+K12)*0.025/(G10+G11+G12) -> 22.05535714 | K24: 1235.1 | L24: 4.9404
B25: Checkoff/Brand Inspection | E25: head | G25: =SUM(G8:G12) -> 224 | I25: 2.96 | K25: 663.04 | L25: 2.65216
B26: Hired Labor | E26: hour | G26: 1260 | I26: 18.19 | K26: =G26*I26 -> 22919.4 | L26: =K26/$L$2 -> 91.6776
B27: Owner Labor | E27: hour | G27: 1000 | I27: 30.1 | K27: =G27*I27 -> 30100 | L27: =K27/$L$2 -> 120.4
B28: Machinery (Fuel, Oil, Repair) | E28: $ | G28: 1 | I28: =3050*(1+42.89%) -> 4358.145 | K28: =G28*I28 -> 4358.145 | L28: =K28/$L$2 -> 17.43258
B29: Vehicles (Fuel, Repair) | E29: $ | G29: 1 | I29: =7000*(1+43.23%) -> 10026.1 | K29: =G29*I29 -> 10026.1 | L29: =K29/$L$2 -> 40.1044
B30: Equipment (Repair) | E30: $ | G30: 1 | I30: =900*(1+6.37%) -> 957.33 | K30: =G30*I30 -> 957.33 | L30: =K30/$L$2 -> 3.82932
B31: Buildings & Improvements (Repair) | E31: $ | G31: 1 | I31: =2700*(1+6.37%) -> 2871.99 | K31: 2871.99 | L31: 11.48796
B32: Interest on Operating Capital | E32: $ | G32: =SUM(K16:K31)*0.25 -> 57768.90521 | I32: 0.05 | K32: 2888.44526 | L32: 11.55378104
B33: TOTAL OPERATING COSTS | K33: =SUM(K16:K32) -> 233964.0661 | L33: 935.8562644
B35: NET RETURNS ABOVE OPERATING COSTS | K35: =K13-K33 -> -29274.31609 | L35: =K35/$L$2 -> -117.0972644
B37: OWNERSHIP COSTS
B38: Capital Recovery:
B39: Purchased Livestock | E39: $ | G39: 1 | I39: =Investment!H24 -> 7307.12 | K39: =G39*I39 -> 7307.12 | L39: =K39/$L$2 -> 29.22848
B40: Housing & Improvements | E40: $ | G40: 1 | I40: =Investment!H17-Investment!H15-Investment!H14-Investment!H13-Investment!H12-Investment!H11 -> 8966 | K40: =G40*I40 -> 8966 | L40: =K40/$L$2 -> 35.864
B41: Machinery | E41: $ | G41: 1 | I41: =Investment!H35 -> 2709 | K41: 2709 | L41: =K41/$L$2 -> 10.836
B42: Equipment | E42: $ | G42: 1 | I42: =Investment!H11+Investment!H12+Investment!H13+Investment!H14+Investment!H15 -> 1572.5 | K42: 1572.5 | L42: 6.29
B43: Vehicles | E43: $ | G43: 1 | I43: =Investment!H36+Investment!H37+Investment!H38 -> 5285 | K43: 5285 | L43: 21.14
B44: Interest on Retained Livestock | E44: $ | G44: =Investment!C31 -> 438600 | I44: 0.0506 | K44: 22193.16 | L44: 88.77264
B45: Taxes & Insurance | E45: $ | G45: 1 | I45: =Investment!G40+Investment!G17 -> 1186.2 | K45: 1186.2 | L45: 4.7448
B46: General Overhead | E46: $ | G46: 1 | I46: 5235 | K46: 5235 | L46: 20.94
B47: TOTAL OWNERSHIP COSTS | K47: =SUM(K39:K46) -> 54453.98 | L47: 217.81592
B49: TOTAL COSTS | K49: =+K33+K47 -> 288418.0461 | L49: =K49/$L$2 -> 1153.672184
B51: NET RETURNS ABOVE TOTAL COSTS | K51: =+K13-K49 -> -83728.29609 | L51: =K51/$L$2 -> -334.9131844

Sheet Monthly Flows
A1: Table 2: Monthly Summary of Returns and Expenses. | O1: CCB-CC1-21
C2: Jan | D2: Feb | E2: Mar | F2: Apr | G2: May | H2: Jun | I2: Jul | J2: Aug | K2: Sep | L2: Oct | M2: Nov | N2: Dec | O2: Value
A4: Production:
B5: Steer Calves | M5: =O5 -> 108508.25 | O5: ='CC1-Budget'!K8 -> 108508.25
B6: Heifer Calves | M6: =O6 -> 46777.5 | O6: ='CC1-Budget'!K9 -> 46777.5
B7: Cull Cows | H7: =O7 -> 34572 | O7: ='CC1-Budget'!K10 -> 34572
B8: Cull Bulls | D8: =O8*0.6 -> 2851.2 | J8: =O8+0.4 -> 4752.4 | O8: ='CC1-Budget'!K11 -> 4752
B9: Cull Replacement Heifers | M9: =O9 -> 10080 | O9: ='CC1-Budget'!K12 -> 10080
A11: Total Receipts | C11: =SUM(C5:C9) -> 0 | D11: =SUM(D5:D9) -> 2851.2 | E11: 0 | F11: 0 | G11: 0 | H11: 34572 | I11: 0 | J11: 4752.4 | K11: 0 | L11: 0 | M11: 165365.75 | N11: 0 | O11: ='CC1-Budget'!K13 -> 204689.75
A14: Operating Inputs:
B15: Alfalfa/Grass Hay | C15: =$O$15*0.25 -> 19557.125 | D15: =$O$15*0.25 -> 19557.125 | E15: 19557.125 | N15: 19557.125 | O15: ='CC1-Budget'!K16 -> 78228.5
B16: Feed Barley | C16: =$O$16/6 -> 875.9566667 | D16: =$O$16/6 -> 875.9566667 | E16: 875.9566667 | F16: 875.9566667 | M16: 875.9566667 | N16: 875.9566667 | O16: ='CC1-Budget'!K17 -> 5255.74
B17: Private Range | F17: =$O$17/7 -> 7926.285714 | G17: ='CC1-Budget'!$K$18/7 -> 7926.285714 | H17: ='CC1-Budget'!$K$18/7 -> 7926.285714 | I17: ='CC1-Budget'!$K$18/7 -> 7926.285714 | J17: ='CC1-Budget'!$K$18/7 -> 7926.285714 | K17: ='CC1-Budget'!$K$18/7 -> 7926.285714 | L17: ='CC1-Budget'!$K$18/7 -> 7926.285714 | O17: ='CC1-Budget'!K18 -> 55484
B18: Crop Aftermath | M18: =O18 -> 5908.5 | O18: ='CC1-Budget'!K19 -> 5908.5
B19: Salt/Mineral | C19: =$O$19/12 -> 75 | D19: =$O$19/12 -> 75 | E19: 75 | F19: 75 | G19: 75 | H19: 75 | I19: 75 | J19: 75 | K19: 75 | L19: 75 | M19: 75 | N19: 75 | O19: ='CC1-Budget'!K20 -> 900
B20: Veterinary/Medicine | C20: =O20*0.01 -> 71.07775828 | D20: =O20*0.05 -> 355.3887914 | F20: =O20*0.375 -> 2665.415936 | G20: =O20*0.01 -> 71.07775828 | H20: =O20*0.05 -> 355.3887914 | J20: =O20*0.02 -> 142.1555166 | K20: =O20*0.11 -> 781.8553411 | L20: =O20*0.375 -> 2665.415936 | O20: ='CC1-Budget'!K21 -> 7107.775828
B21: Trucking to & from Pasture | F21: =O21/2 -> 2250 | L21: =O21/2 -> 2250 | O21: ='CC1-Budget'!K22 -> 4500
B22: Trucking to Market | D22: =O22*0.03333 -> 18.6648 | H22: =O22*0.68 -> 380.8 | J22: =O22*0.016666 -> 9.33296 | M22: =O22*0.27 -> 151.2 | O22: ='CC1-Budget'!K23 -> 560
B23: Commission | D23: =O23*0.03333 -> 41.165883 | H23: =O23*0.68 -> 839.868 | J23: =O23*0.016666 -> 20.5841766 | M23: =O23*0.27 -> 333.477 | O23: ='CC1-Budget'!K24 -> 1235.1
B24: Checkoff/Brand Inspection | D24: 5 | H24: 103 | J24: 3 | M24: 496 | O24: ='CC1-Budget'!K25 -> 663.04
B25: Hired Labor | C25: =$O$25/7 -> 3274.2 | D25: =$O$25/7 -> 3274.2 | E25: =$O$25/7 -> 3274.2 | F25: =$O$25/7 -> 3274.2 | L25: =$O$25/7 -> 3274.2 | M25: =$O$25/7 -> 3274.2 | N25: =$O$25/7 -> 3274.2 | O25: ='CC1-Budget'!K26 -> 22919.4
B26: Owner Labor | C26: =$O$26/12 -> 2508.333333 | D26: =$O$26/12 -> 2508.333333 | E26: 2508.333333 | F26: 2508.333333 | G26: 2508.333333 | H26: 2508.333333 | I26: 2508.333333 | J26: 2508.333333 | K26: 2508.333333 | L26: 2508.333333 | M26: 2508.333333 | N26: 2508.333333 | O26: ='CC1-Budget'!K27 -> 30100
B27: Machinery (Fuel, Oil, Repair) | C27: =$O$27/12 -> 363.17875 | D27: =$O$27/12 -> 363.17875 | E27: 363.17875 | F27: 363.17875 | G27: 363.17875 | H27: 363.17875 | I27: 363.17875 | J27: 363.17875 | K27: 363.17875 | L27: 363.17875 | M27: 363.17875 | N27: 363.17875 | O27: ='CC1-Budget'!K28 -> 4358.145
B28: Vehicles (Fuel, Repair) | C28: =$O$28/12 -> 835.5083333 | D28: =$O$28/12 -> 835.5083333 | E28: 835.5083333 | F28: 835.5083333 | G28: 835.5083333 | H28: 835.5083333 | I28: 835.5083333 | J28: 835.5083333 | K28: 835.5083333 | L28: 835.5083333 | M28: 835.5083333 | N28: 835.5083333 | O28: ='CC1-Budget'!K29 -> 10026.1
B29: Equipment (Repair) | C29: =$O$29/12 -> 79.7775 | D29: =$O$29/12 -> 79.7775 | E29: 79.7775 | F29: 79.7775 | G29: 79.7775 | H29: 79.7775 | I29: 79.7775 | J29: 79.7775 | K29: 79.7775 | L29: 79.7775 | M29: 79.7775 | N29: 79.7775 | O29: ='CC1-Budget'!K30 -> 957.33
B30: Buildings & Improvements (Repair) | C30: =$O$30/12 -> 239.3325 | D30: 239.3325 | E30: 239.3325 | F30: 239.3325 | G30: 239.3325 | H30: 239.3325 | I30: 239.3325 | J30: 239.3325 | K30: 239.3325 | L30: 239.3325 | M30: 239.3325 | N30: 239.3325 | O30: ='CC1-Budget'!K31 -> 2871.99
B31: Interest on Operating Capital | N31: =O31 -> 2888.44526 | O31: ='CC1-Budget'!K32 -> 2888.44526
A33: Total Costs | C33: =SUM(C15:C31) -> 27879.48984 | D33: 28228.63156 | E33: 27808.41208 | F33: 21092.98873 | G33: 12098.49389 | H33: 13706.47292 | I33: 12027.41613 | J33: 12202.48878 | K33: 12809.27147 | L33: 20217.03207 | M33: 15140.46408 | N33: 30696.85734 | O33: 233964.0661
A36: Net Returns | C36: =C11-C33 -> -27879.48984 | D36: -25377.43156 | E36: -27808.41208 | F36: -21092.98873 | G36: -12098.49389 | H36: 20865.52708 | I36: -12027.41613 | J36: -7450.088784 | K36: -12809.27147 | L36: -20217.03207 | M36: 150225.2859 | N36: -30696.85734 | O36: -29274.31609
A43: Table 3: Monthly Feed Requirements.
A44: Feed | C44: Units | D44: Jan | E44: Feb | F44: Mar | G44: Apr | H44: May | I44: Jun | J44: Jul | K44: Aug | L44: Sep | M44: Oct | N44: Nov | O44: Dec
A46: Feed Barley | C46: cwt | D46: 29 | E46: 29 | F46: 29 | G46: 29 | N46: 29 | O46: 29
A47: Alfalfa/Grass Hay
B48: Cows | C48: ton | D48: 94 | E48: 94 | F48: 94 | O48: 94
B49: Replacement Heifers | C49: ton | D49: 9 | E49: 9 | F49: 9 | O49: 9
B50: Bulls | C50: ton | D50: 5 | E50: 5 | F50: 5 | O50: 5
B51: Horses | C51: ton | D51: 1 | E51: 1 | F51: 1 | O51: 1
A52: Private Range
B53: Cows | C53: AUM | G53: 250 | H53: 250 | I53: 250 | J53: 250 | K53: 250 | L53: 250 | M53: 250
B54: Replacement Heifers | C54: AUM | G54: 38 | H54: 38 | I54: 38 | J54: 38 | K54: 38 | L54: 38 | M54: 38
B55: Bulls | C55: AUM | G55: 14 | H55: 14 | I55: 14 | J55: 14 | K55: 14 | L55: 14 | M55: 14
B56: Horses | C56: AUM | G56: 2 | H56: 2 | I56: 2 | J56: 2 | K56: 2 | L56: 2 | M56: 2
A57: Crop Aftermath | C57: AUM | N57: 303
A58: Salt/Mineral | C58: cwt | D58: 5 | E58: 5 | F58: 5 | G58: 5 | H58: 5 | I58: 5 | J58: 5 | K58: 5 | L58: 5 | M58: 5 | N58: 5 | O58: 5
B62: Daily Feed Requirements by Livestock Category (lb fed/head/day)
B63: Livestock Category | C63: Alfalfa or Grass Hay (lb) | E63: Feed Barley (lb) | F63: No. of Days
B66: Replacement Heifers | E66: 2 | F66: 180
B67: Replacement Heifers | C67: 13 | F67: 120
B68: Cows | C68: 25 | F68: 120
B69: Bulls | C69: 30 | F69: 120
B70: Horses | C70: 25 | F70: 120

Sheet Investment
A1: Table 4: Investment Summary. | H1: CCB-CC1-22
C2: Total Value | D2: Salvage/Cull Value | E2: Livestock Share | F2: Useful Life | G2: Annual Taxes & Insurance | H2: Annual Capital Recovery | I2: 1
A4: Buildings, Improvements | J4: Interest/Discount Rate
A5: and Equipment | J5: 0.0506
B6: Fencing | C6: 70000 | D6: 0 | E6: 100 | F6: 25 | G6: =C6*0.0036 -> 252 | H6: =(C6-D6)*0.071 -> 4970
B7: Hay Shed | C7: 30000 | D7: 5000 | E7: 100 | F7: 40 | G7: 108 | H7: =(C7-D7)*0.058 -> 1450
B8: Grain Storage | C8: 8500 | D8: 1500 | E8: 100 | F8: 30 | G8: 30.6 | H8: =(C8-D8)*0.065 -> 455
B9: Working Corrals & Pens | C9: 20000 | D9: 3000 | E9: 100 | F9: 30 | G9: 72 | H9: =(C9-D9)*0.058 -> 986
B10: Barn | C10: 20000 | D10: 3000 | E10: 100 | F10: 30 | G10: 72 | H10: =(C10-D10)*0.065 -> 1105
B11: Calf Table | C11: 1500 | D11: 500 | E11: 100 | F11: 10 | G11: 5.4 | H11: =(C11-D11)*0.13 -> 130
B12: Squeeze Chute | C12: 3500 | D12: 1000 | E12: 100 | F12: 10 | G12: 12.6 | H12: =(C12-D12)*0.13 -> 325
B13: Vet Equipment | C13: 1500 | D13: 0 | E13: 100 | F13: 15 | G13: 5.4 | H13: =(C13-D13)*0.097 -> 145.5
B14: Stock Trailer | C14: 5000 | D14: 1000 | E14: 100 | F14: 20 | G14: 18 | H14: =(C14-D14)*0.081 -> 324
B15: Gooseneck Trailer | C15: 12000 | D15: 4000 | E15: 100 | F15: 20 | G15: 43.2 | H15: =(C15-D15)*0.081 -> 648
A17: Total | C17: =SUM(C6:C15) -> 172000 | G17: =SUM(G6:G15) -> 619.2 | H17: =SUM(H6:H15) -> 10538.5
A20: Purchased Livestock
B21: Horses | C21: 5000 | D21: 1200 | E21: 100 | F21: 10 | H21: =(C21-D21)*0.13 -> 494
B22: Bulls | C22: 40000 | D22: ='CC1-Budget'!Q9*'CC1-Budget'!C11*'CC1-Budget'!I11 -> 15840 | E22: 100 | F22: 4 | H22: =(C22-D22)*0.282 -> 6813.12
A24: Total | C24: =SUM(C21:C22) -> 45000 | H24: =SUM(H21:H22) -> 7307.12
A27: Retained Livestock
B28: Beef Replacement Heifers | C28: =1200*53 -> 63600 | D28: =1035*53 -> 54855 | E28: 100 | H28: =C28*$J$5 -> 3218.16 | I28: 2
B29: Beef Cows | C29: =250*1500 -> 375000 | D29: =250*770 -> 192500 | E29: 100 | H29: =C29*$J$5 -> 18975 | I29: 2
A31: Total | C31: =SUM(C28:C29) -> 438600 | H31: =SUM(H28:H29) -> 22193.16
A34: Machinery and Vehicles
B35: Tractor Loader | C35: 40000 | D35: 8500 | E35: 100 | F35: 18 | G35: =C35*0.0036 -> 144 | H35: =(C35-D35)*0.086 -> 2709
B36: Pickup 4X4 3/4 ton | C36: 20000 | D36: 5000 | E36: 100 | F36: 10 | G36: =C36*0.0094 -> 188 | H36: =(C36-D36)*0.13 -> 1950
B37: Pickup 4X4 1 ton | C37: 25000 | D37: 6000 | E37: 100 | F37: 8 | G37: =C37*0.0094 -> 235 | H37: =(C37-D37)*0.155 -> 2945
B38: ATV | C38: 4000 | D38: 1000 | E38: 100 | F38: 10 | G38: =C38*0.0094 -> 37.6 | H38: =(C38-D38)*0.13 -> 390
A40: Total | C40: =SUM(C35:C38) -> 89000 | G40: =SUM(G35:G37) -> 567 | H40: =SUM(H35:H38) -> 7994
A43: 1 | B43: Annual capital recovery is the method of calculating depreciation and interest recommended by the National Task Force
B44: on Commodity Costs and Returns Measurement Methods.
A45: 2 | B45: Interest on average investment.
B48: https://www.vcalc.com/wiki/vCalc/Capital+Recovery

Sheet Vet
C1: Veterinary Expenses
J3: Monthly Allocation
A4: Vaccine | D4: Number of Head | E4: Dosage | F4: Price | H4: Units | I4: $/Unit | J4: Jan | K4: Feb | L4: Mar | M4: Apr | N4: May | O4: Jun | P4: Jul | Q4: Aug | R4: Sep | S4: Oct | T4: Nov | U4: Dec | V4: Total
C5: Steer Calves | D5: 113
A6: Inforce 3 | C6: Respiratory Viral | E6: 50 | F6: 77.49 | H6: dose | I6: =F6/E6 -> 1.5498 | L6: 1 | T6: 1 | V6: =SUM(J6:U6)*$D$5*I6 -> 350.2548
A7: Ultrabac 8 | C7: 8 Way | E7: 50 | F7: 42.29 | H7: dose | I7: =F7/E7 -> 0.8458 | L7: 1 | T7: 1 | V7: =SUM(J7:U7)*$D$5*I7 -> 191.1508
C8: Heifer Calves | D8: 113
A9: Inforce 3 | C9: Respiratory Viral | E9: 50 | F9: 77.49 | H9: dose | I9: 1.5498 | L9: 1 | T9: 1 | V9: =SUM(J9:U9)*$D$8*I9 -> 350.2548
A10: Ultrabac 8 | C10: 8 Way | E10: 50 | F10: 42.29 | H10: dose | I10: 0.8458 | L10: 1 | T10: 1 | V10: =SUM(J10:U10)*$D$8*I10 -> 191.1508
C11: Bangs | H11: dose | I11: 4 | T11: 1 | V11: =SUM(J11:U11)*$D$8*I11 -> 452
C12: Cows | D12: 250
A13: Pyramid 5 | C13: Respiratory Viral | E13: 50 | F13: 65.29 | H13: dose | I13: 1.3058 | L13: 1 | V13: =SUM(J13:U13)*$D$12*I13 -> 326.45
A14: Vira Shield 6 + VL5 | C14: Pregnancy Viral | E14: 50 | F14: 127.29 | H14: dose | I14: 2.5458 | L14: 1 | V14: =SUM(J14:U14)*$D$12*I14 -> 636.45
A15: Clean-Up 2 | C15: Pour-On | E15: 384 | F15: 432.5 | H15: dose | I15: 1.126302083 | L15: 1 | V15: =SUM(J15:U15)*$D$12*I15 -> 281.5755208
A16: PYthon2 | C16: Fly Tags | E16: 100 | F16: 197.39 | H16: head | I16: 1.9739 | L16: 1 | V16: =SUM(J16:U16)*$D$12*I16 -> 493.475
C17: Preg. Check | H17: head | I17: 4 | T17: 1 | V17: =SUM(J17:U17)*$D$12*I17 -> 1000
C18: Replacement Heifers | D18: 58
A19: Pyramid 5 | C19: Respiratory Viral | E19: 50 | F19: 65.29 | H19: dose | I19: 1.3058 | M19: 1 | T19: 1 | V19: =SUM(J19:U19)*$D$18*I19 -> 151.4728
A20: Vira Shield 6 + VL5 | C20: Pregnancy Viral | E20: 50 | F20: 127.29 | H20: dose | I20: 2.5458 | M20: 1 | V20: =SUM(J20:U20)*$D$18*I20 -> 147.6564
A21: Clean-Up 2 | C21: Pour-On | E21: 384 | F21: 432.5 | H21: dose | I21: 1.126302083 | T21: 1 | V21: =SUM(J21:U21)*$D$18*I21 -> 65.32552083
A22: Python 2 | C22: Fly Tags | E22: 100 | F22: 197.39 | H22: head | I22: 1.9739 | M22: 1 | V22: =SUM(J22:U22)*$D$18*I22 -> 114.4862
C23: Preg. Check | H23: head | I23: 4 | T23: 1 | V23: =SUM(J23:U23)*$D$18*I23 -> 232
C24: Bulls | D24: 10
A25: Pyramid 5 | C25: Respiratory Viral | E25: 50 | F25: 65.29 | H25: dose | I25: 1.3058 | M25: 1 | V25: =SUM(J25:U25)*$D$24*I25 -> 13.058
A26: Ultrabac 8 | C26: 8 Way | E26: 50 | F26: 42.29 | H26: dose | I26: 0.8458 | T26: 1 | V26: =SUM(J26:U26)*$D$24*I26 -> 8.458
A27: Clean-Up 2 | C27: Pour-On | E27: 384 | F27: 432.5 | H27: dose | I27: 1.126302083 | M27: 1 | V27: =SUM(J27:U27)*$D$24*I27 -> 11.26302083
C28: Semen/Trich Test | H28: head | I28: 65 | M28: 1 | V28: =SUM(J28:U28)*$D$24*I28 -> 650
A29: Python 2 | C29: Fly Tags | E29: 100 | F29: 197.39 | H29: head | I29: 1.9739 | M29: 1 | V29: =SUM(J29:U29)*$D$24*I29 -> 19.739
U30: Total | V30: =SUM(V6:V29) -> 5686.220662
V32: =V30*1.25 -> 7107.775828
